bitfinex-derivatives/quotes_SOLF0:USTF0_20250818
["timestamp","ask_amount","ask_price","bid_price","bid_amount"]
[1755547651015,0.03532467,182.79,182.75,5.4692]
[1755547651322,0.03532467,182.79,182.76,3.08]
[1755547652118,0.03532467,182.79,182.73,3.82695034]
[1755547652119,0.03532467,182.79,182.77,3.08]
[1755547652310,0.03532467,182.79,182.75,3.08]
[1755547653226,0.03532467,182.79,182.76,5.469]
[1755547653929,2.93532467,182.79,182.76,5.469]
[1755547654425,2.93532467,182.79,182.75,8.5493]
[1755547654621,2.93532467,182.79,182.75,3.08]
[1755547654821,2.9,182.78,182.72,6.90695034]
[1755547656023,2.9,182.78,182.73,5.4698]
[1755547656219,2.9,182.77,182.69,3.82695034]
[1755547656419,2.9,182.77,182.7,3.08]
[1755547656628,3.82695034,182.81,182.72,5.4701]
[1755547656827,2.9,182.76,182.72,5.4701]
[1755547657826,2.9,182.76,182.72,8.5501]
[1755547658021,2.9,182.79,182.73,3.08]
[1755547658218,3.82695034,182.82,182.75,3.08]
[1755547658430,56.74262838,182.81,182.75,3.08]
[1755547658625,3.84262838,182.8,182.75,3.08]
[1755547658923,2.9,182.78,182.74,5.4694]
[1755547659328,2.9,182.78,182.63,10.9457]
[1755547659329,50.0,182.81,182.77,3.08]
[1755547659627,2.9,182.84,182.78,3.82695034]
[1755547659931,136.54,182.85,182.8,3.08]
[1755547660121,136.54,182.85,182.79,3.08]
[1755547660430,2.9,182.84,182.8,5.4678]
[1755547660928,2.9,182.84,182.8,8.5478]
[1755547661523,2.9,182.84,182.8,3.08]
[1755547661728,2.9,182.87,182.79,5.4681]
[1755547661928,3.84315818,182.86,182.79,5.4681]
[1755547662225,3.84315818,182.85,182.79,3.08]
[1755547662419,2.9,182.87,182.79,3.08]
[1755547662731,3.8434926,182.86,182.79,3.08]
[1755547662930,2.9,182.87,182.81,5.4673]
[1755547663226,2.9,182.85,182.81,5.4673]
[1755547663727,2.9,182.85,182.81,8.5473]
[1755547664326,2.9,182.85,182.81,3.08]
[1755547664924,2.9,182.85,182.8,5.4678]
[1755547665131,2.9,182.85,182.81,8.5475]
[1755547665424,139.4,182.89,182.81,6.90695034]
[1755547665623,3.84285937,182.88,182.81,6.90695034]
[1755547665826,3.84285937,182.87,182.81,6.90695034]
[1755547666027,139.4,182.89,182.81,6.90695034]
[1755547666227,3.84222429,182.88,182.81,6.90695034]
[1755547666434,3.84222429,182.87,182.81,12.37445034]
[1755547666731,2.9,182.88,182.81,12.37445034]
[1755547667025,139.4,182.89,182.81,6.90695034]
[1755547667230,3.84075234,182.88,182.81,6.90695034]
[1755547667430,139.4,182.89,182.81,6.90695034]
[1755547667627,3.83972797,182.88,182.83,8.5469]
[1755547667834,2.9,182.88,182.83,8.5469]
[1755547668230,2.9,182.88,182.84,3.08]
[1755547668734,2.9,182.88,182.84,8.5466]
[1755547669534,136.5,182.89,182.82,3.08]
[1755547669732,136.5,182.89,182.85,3.08]
[1755547670033,136.5,182.89,182.86,8.5459]
[1755547671028,50.0,182.92,182.84,3.82695034]
[1755547671234,2.9,182.99,182.87,6.90695034]
[1755547671430,9.83302009,183.01,182.87,6.90695034]
[1755547671431,2.9,182.97,182.87,6.90695034]
[1755547671631,2.9,182.95,182.87,6.90695034]
[1755547672031,0.0374099,182.94,182.87,6.90695034]
[1755547672430,0.0374099,182.94,182.87,12.37245034]
[1755547673030,0.0374099,182.94,182.88,5.4654]
[1755547673233,0.0374099,182.94,182.87,6.90695034]
[1755547673761,0.0374099,182.94,182.75,10.9385]
[1755547673762,0.0374099,182.94,182.91,2.87]
[1755547674239,2.9,182.95,182.91,2.87]
[1755547674436,3.17,182.94,182.89,9.29205034]
[1755547674635,3.17,182.93,182.89,12.16205034]
[1755547675627,3.17,182.93,182.89,3.82695034]
[1755547675832,137.16,182.98,182.86,3.82695034]
[1755547675833,3.17,182.97,182.86,3.82695034]
[1755547676342,3.17,182.97,182.87,5.4657]
[1755547677637,3.17,182.97,182.88,5.4654]
[1755547677841,3.17,182.97,182.87,2.87]
[1755547678544,3.82695034,182.95,182.83,6.69695034]
[1755547678743,3.17,182.93,182.86,5.466]
[1755547680444,3.17,182.93,182.85,8.3362]
[1755547680645,3.17,182.93,182.85,2.87]
[1755547683645,3.17,182.93,182.87,2.87]
[1755547684044,3.17,182.93,182.85,5.4662]
[1755547684245,3.17,182.93,182.83,6.69695034]
[1755547684645,3.17,182.93,182.84,2.87]
[1755547685251,3.17,182.93,182.86,5.4659]
[1755547686950,3.17,182.93,182.85,5.4663]
[1755547687245,3.17,182.93,182.84,2.87]
[1755547687246,3.17,182.91,182.84,2.87]
[1755547687654,141.51,182.91,182.84,2.87]
[1755547689560,3.17,182.9,182.81,8.3375]
[1755547690657,3.17,182.9,182.82,5.4672]
[1755547690860,3.17,182.9,182.81,2.87]
[1755547691054,3.17,182.9,182.8,3.82695034]
[1755547691253,138.34,182.91,182.84,2.87]
[1755547691751,50.0,182.92,182.86,2.87]
[1755547691958,3.17,182.98,182.89,3.82695034]
[1755547692152,3.17,182.98,182.91,5.4644]
[1755547692359,3.17,182.98,182.9,2.87]
[1755547693162,3.17,182.98,182.89,3.82695034]
[1755547693362,3.17,182.96,182.86,2.87]
[1755547693662,3.17,182.94,182.86,8.336]
[1755547694566,3.17,182.94,182.86,2.87]
[1755547695566,3.17,182.94,182.86,8.336]
[1755547695766,3.17,182.94,182.86,2.87]
[1755547696069,138.06,182.97,182.9,5.4647]
[1755547696462,138.06,182.97,182.88,2.87]
[1755547696662,138.06,182.97,182.88,6.69695034]
[1755547697169,138.06,182.97,182.9,5.4647]
[1755547697670,138.06,182.97,182.91,3.82695034]
[1755547697862,367.5,183.02,182.94,2.87]
[1755547698067,3.81689876,183.01,182.94,2.87]
[1755547698273,3.81689876,183.0,182.94,8.3335]
[1755547698465,505.54,183.02,182.94,8.3335]
[1755547698665,3.81669551,183.01,182.94,8.3335]
[1755547698863,3.81669551,183.0,182.94,8.3335]
[1755547699064,505.54,183.02,182.94,8.3335]
[1755547699266,3.81615062,183.01,182.94,8.3335]
[1755547699468,3.81615062,183.0,182.94,8.3335]
[1755547699669,505.54,183.02,182.94,8.3335]
[1755547699968,3.80203418,183.01,182.94,8.3335]
[1755547700168,3.80203418,183.0,182.94,8.3335]
[1755547700371,505.54,183.02,182.94,8.3335]
[1755547700673,3.80241823,183.01,182.94,8.3335]
[1755547700862,505.54,183.02,182.94,8.3335]
[1755547701061,3.80241823,183.01,182.94,8.3335]
[1755547701270,505.54,183.02,182.94,8.3335]
[1755547701473,3.80367934,183.01,182.9,2.87]
[1755547701668,3.17,182.99,182.9,2.87]
[1755547701871,3.80367934,182.98,182.9,2.87]
[1755547702062,3.17,182.97,182.9,2.87]
[1755547702269,137.9,182.96,182.9,2.87]
[1755547703270,137.86,183.0,182.93,3.01]
[1755547703975,6.9867608,182.99,182.93,3.01]
[1755547704175,3.18,182.99,182.91,5.4645]
[1755547704771,3.18,182.98,182.94,3.01]
[1755547704969,137.86,183.0,182.94,3.01]
[1755547705262,3.80857791,182.99,182.93,5.4639]
[1755547705468,137.86,183.0,182.92,5.4642]
[1755547705669,3.80886798,182.99,182.92,5.4642]
[1755547705873,137.86,183.0,182.92,5.4642]
[1755547706074,3.80886798,182.99,182.92,5.4642]
[1755547706267,137.86,183.0,182.91,8.4746]
[1755547706473,3.80819903,182.99,182.91,3.01]
[1755547706673,141.04,183.0,182.91,3.01]
[1755547706878,3.80802055,182.99,182.92,5.4641]
[1755547707067,141.04,183.0,182.92,5.4641]
[1755547707275,3.8076829,182.99,182.91,3.01]
[1755547707472,141.04,183.0,182.91,8.4743]
[1755547707677,3.8083998,182.99,182.91,8.4743]
[1755547707879,141.04,183.0,182.92,5.4643]
[1755547708078,3.8083998,182.99,182.92,5.4643]
[1755547708273,141.04,183.0,182.92,5.4643]
[1755547708477,3.80819858,182.99,182.92,5.4643]
[1755547708684,3.80819858,182.99,182.91,3.01]
[1755547708685,3.80826469,182.98,182.91,3.01]
[1755547708889,3.18,182.99,182.91,3.01]
[1755547709074,3.8075784,182.98,182.91,3.01]
[1755547709383,3.80801566,182.97,182.91,3.01]
[1755547709582,3.18,182.97,182.91,3.01]
[1755547710582,137.86,183.0,182.92,5.4641]
[1755547710783,3.80863324,182.99,182.92,5.4641]
[1755547710984,141.04,183.0,182.92,5.4641]
[1755547711184,3.80842361,182.99,182.92,5.4641]
[1755547711481,141.04,183.0,182.92,5.4641]
[1755547711685,3.80914534,182.99,182.92,5.4641]
[1755547711884,141.04,183.0,182.92,5.4641]
[1755547712084,3.80914534,182.99,182.92,5.4641]
[1755547712286,3.18,182.97,182.83,3.01]
[1755547712485,3.18,182.95,182.85,3.01]
[1755547712681,137.78,182.94,182.87,5.4656]
[1755547714985,137.78,182.94,182.85,3.01]
[1755547715287,137.66,182.98,182.89,3.01]
[1755547716186,137.66,182.98,182.94,5.4635]
[1755547716488,137.66,182.98,182.95,3.01]
[1755547716786,137.66,182.98,182.96,3.01]
[1755547719080,137.66,182.98,182.97,3.01]
[1755547719281,367.5,183.02,182.94,6.0373567]
[1755547719491,367.5,183.02,182.95,3.01]
[1755547719992,140.72,183.03,182.95,3.01]
[1755547720393,140.72,183.03,182.97,5.4627]
[1755547721689,89.06563544,183.06,182.98,5.4625]
[1755547721690,3.18,183.05,182.98,5.4625]
[1755547721887,141.26520894,183.04,182.98,5.4625]
[1755547722191,6.98520894,183.03,182.98,8.4725]
[1755547722491,3.18,183.03,182.98,8.4725]
[1755547722693,89.06563544,183.06,183.0,3.01]
[1755547722893,141.38443484,183.05,183.0,3.01]
[1755547723090,3.18,183.04,183.0,3.01]
[1755547723390,3.21907021,183.04,183.0,8.4717]
[1755547723789,3.21907021,183.04,182.96,6.84001937]
[1755547724590,3.21907021,183.04,182.97,5.4626]
[1755547725796,3.21907021,183.04,182.98,5.4625]
[1755547726093,0.03907021,183.04,182.97,3.01]
[1755547727984,0.03907021,183.04,183.01,3.01]
[1755547728189,0.03907021,183.04,183.02,3.01]
[1755547728391,137.58,183.05,183.02,3.01]
[1755547730397,140.76,183.05,183.0,8.4718]
[1755547730690,140.76,183.05,183.0,5.4618]
[1755547730900,137.58,183.05,183.03,3.01]
[1755547731590,140.38,183.09,183.03,3.01]
[1755547733300,140.26,183.09,183.02,3.83001937]
[1755547733893,140.26,183.09,183.02,9.29111937]
[1755547734293,140.26,183.09,183.02,3.83001937]
[1755547734997,140.26,183.09,183.02,9.29131937]
[1755547735594,3.06,183.08,183.01,5.4615]
[1755547736493,3.06,183.08,183.0,3.17]
[1755547737394,3.06,183.08,183.0,8.6319]
[1755547737598,3.06,183.08,183.0,3.17]
[1755547738107,137.2,183.09,183.03,3.17]
[1755547738793,137.2,183.09,183.04,8.6305]
[1755547738794,140.26,183.09,183.04,8.6305]
[1755547739588,140.26,183.09,183.05,3.17]
[1755547741500,140.26,183.09,183.03,5.4609]
[1755547742002,6.89428317,183.08,182.94,3.17]
[1755547742304,3.06,183.06,182.97,3.17]
[1755547742691,0.0346332,183.03,183.0,5.4617]
[1755547742899,0.0346332,183.03,183.01,3.17]
[1755547744304,0.0346332,183.03,183.01,8.6316]
[1755547744498,0.0346332,183.03,182.96,3.83001937]
[1755547744703,0.0346332,183.03,182.99,8.632]
[1755547745006,0.0346332,183.03,183.0,3.17]
[1755547745194,0.0346332,183.03,183.0,5.4617]
[1755547745394,3.06,183.06,183.0,8.6317]
[1755547745690,0.03457612,183.03,183.0,8.6317]
[1755547746096,0.03457612,183.03,183.01,3.17]
[1755547747205,0.03457612,183.03,183.0,5.4617]
[1755547747206,3.09457612,183.03,183.0,5.4617]
[1755547747401,3.06,183.02,183.0,5.4617]
[1755547747712,0.03457612,183.03,183.0,5.4617]
[1755547747902,3.09457612,183.03,182.99,8.6322]
[1755547749198,3.06,183.02,182.98,9.29241937]
[1755547750995,0.03457612,183.03,182.99,8.6321]
[1755547751306,3.09457612,183.03,183.0,3.17]
[1755547751507,3.09457612,183.03,182.98,7.00001937]
[1755547751705,3.09457612,183.03,182.99,8.6322]
[1755547753013,0.03457612,183.03,182.99,3.17]
[1755547753206,3.06,183.02,182.98,3.83001937]
[1755547753406,3.06,183.02,182.98,7.00001937]
[1755547753602,3.06,183.02,182.99,3.17]
[1755547754608,3.06,183.01,182.97,8.6327]
[1755547755112,3.06,183.02,182.95,3.83001937]
[1755547755510,3.06,183.02,182.95,9.29321937]
[1755547755915,3.06,183.02,182.93,3.17]
[1755547756108,3.06,183.02,182.95,5.4633]
[1755547756616,0.03764963,183.0,182.95,5.4633]
[1755547756911,3.09764963,183.0,182.95,8.6333]
[1755547758215,3.09764963,183.0,182.96,3.17]
[1755547758514,0.03764963,183.0,182.96,3.17]
[1755547758923,0.03764963,183.0,182.94,5.4636]
[1755547759112,3.09764963,183.0,182.92,7.00001937]
[1755547759317,3.09764963,183.0,182.92,3.17]
[1755547759514,3.80496697,182.99,182.89,3.17]
[1755547759709,3.80496697,182.98,182.89,3.17]
[1755547760011,6.86496697,182.97,182.89,3.17]
[1755547760205,3.06,182.97,182.89,3.17]
[1755547760601,0.03663169,182.95,182.89,8.6351]
[1755547761602,0.03663169,182.95,182.89,3.17]
[1755547762217,0.03663169,182.95,182.89,8.6352]
[1755547762417,0.03663169,182.95,182.89,3.17]
[1755547765319,0.03663169,182.95,182.89,8.6352]
[1755547765516,0.03663169,182.95,182.91,3.83001937]
[1755547765820,0.03663169,182.95,182.94,3.05]
[1755547770515,0.03663169,182.95,182.94,6.88001937]
[1755547772217,0.03663169,182.95,182.94,12.34371937]
[1755547774224,2.98,183.0,182.98,5.4625]
[1755547774424,136.22,183.02,182.99,3.05]
[1755547774425,139.2,183.02,182.99,3.05]
[1755547774626,16.41,183.08,183.0,6.88001937]
[1755547774627,2.98,183.08,183.0,6.88001937]
[1755547774828,3.81400411,183.07,183.0,6.88001937]
[1755547775128,2.98,183.06,183.0,6.88001937]
[1755547775722,136.0,183.09,183.01,0.03713083]
[1755547775922,2.98,183.05,183.01,3.08713083]
[1755547776529,2.98,183.05,183.01,8.54873083]
[1755547776926,136.0,183.09,183.01,0.03713083]
[1755547776927,2.98,183.08,183.01,0.03713083]
[1755547779834,2.98,183.08,183.01,5.49873083]
[1755547780134,2.98,183.08,183.01,0.03713083]
[1755547781337,2.98,183.08,183.02,5.4612]
[1755547782130,2.98,183.08,183.01,5.49863083]
[1755547783140,2.98,183.08,183.02,5.4612]
[1755547784645,2.98,183.08,183.01,5.49863083]
[1755547785047,2.98,183.08,183.01,0.03713083]
[1755547785343,2.98,183.08,183.02,5.4612]
[1755547786640,2.98,183.08,183.01,5.49863083]
[1755547788054,3.81795983,183.07,183.01,0.03713083]
[1755547788248,2.98,183.08,183.01,0.03713083]
[1755547788442,3.81794552,183.07,183.01,0.03713083]
[1755547788648,2.98,183.05,183.01,3.08713083]
[1755547788846,2.98,183.08,183.01,0.03713083]
[1755547789051,2.98,183.06,183.01,0.03713083]
[1755547789255,2.98,183.08,183.01,0.03713083]
[1755547789450,3.81792943,183.07,183.01,0.03713083]
[1755547789754,136.0,183.09,183.01,0.03713083]
[1755547789955,2.98,183.04,183.01,0.03713083]
[1755547790354,50.0,183.08,183.04,3.05]
[1755547790558,135.94,183.1,183.04,3.05]
[1755547790955,135.94,183.1,183.04,8.5105]
[1755547791350,135.94,183.1,182.94,10.9274]
[1755547791351,135.94,183.1,183.06,3.83001937]
[1755547791649,135.94,183.1,183.07,3.05]
[1755547791854,135.94,183.1,183.08,3.05]
[1755547792653,135.94,183.1,183.08,2.93]
[1755547792855,135.94,183.1,183.09,2.93]
[1755547793660,135.94,183.1,183.08,2.93]
[1755547794156,110.74030554,183.12,183.08,2.93]
[1755547795345,110.74030554,183.12,183.08,8.3894]
[1755547797067,107.62030554,183.12,183.09,5.459]
[1755547797256,107.62030554,183.12,183.1,2.93]
[1755547797452,135.92,183.13,183.1,2.93]
[1755547797651,139.04,183.13,183.1,2.93]
[1755547797954,139.04,183.13,183.09,9.28901937]
[1755547798154,139.04,183.13,183.09,12.21901937]
[1755547798750,135.92,183.13,183.09,6.76001937]
[1755547798955,3.12,183.12,183.09,6.76001937]
[1755547800256,135.92,183.13,183.09,9.28911937]
[1755547800461,135.92,183.13,183.1,2.93]
[1755547800761,3.12,183.12,183.09,3.83001937]
[1755547801656,3.12,183.12,183.09,6.76001937]
[1755547801962,3.12,183.11,183.09,3.83001937]
[1755547802652,3.12,183.1,183.07,0.04199366]
[1755547804768,135.92,183.13,183.07,0.04199366]
[1755547804963,3.12,183.12,183.07,0.04199366]
[1755547805172,135.92,183.13,183.07,0.04199366]
[1755547805356,3.12,183.12,183.07,0.04199366]
[1755547805759,135.92,183.13,183.07,0.04199366]
[1755547805960,3.12,183.1,183.07,0.04199366]
[1755547806162,3.12,183.12,183.07,0.04199366]
[1755547807362,3.12,183.1,183.07,0.04199366]
[1755547807568,135.92,183.13,183.07,0.04199366]
[1755547807757,139.04,183.13,183.07,0.04199366]
[1755547811171,139.04,183.13,183.07,5.50159366]
[1755547811378,139.04,183.13,183.07,0.04199366]
[1755547812169,138.98,183.13,183.09,2.93]
[1755547812371,135.86,183.13,183.09,2.93]
[1755547812575,135.86,183.13,183.1,2.93]
[1755547813469,3.12,183.16,183.11,3.83001937]
[1755547813768,389.47606975,183.22,183.12,8.3882]
[1755547813769,135.84,183.17,183.12,8.3882]
[1755547813970,135.84,183.17,183.12,5.4582]
[1755547814270,135.84,183.17,183.13,2.96647906]
[1755547814477,135.84,183.17,183.14,2.93]
[1755547814670,3.12,183.21,183.14,2.93]
[1755547814871,144.1294579,183.2,183.14,2.93]
[1755547815067,3.84283489,183.19,183.14,2.93]
[1755547815267,3.84283489,183.18,183.14,2.93]
[1755547815470,3.12,183.18,183.14,2.93]
[1755547816070,135.84,183.2,183.16,2.93]
[1755547816071,138.96,183.2,183.16,2.93]
[1755547816271,3.12,183.23,183.17,3.83001937]
[1755547816569,138.96,183.23,183.17,3.83001937]
[1755547816772,138.96,183.23,183.17,6.76001937]
[1755547817160,138.96,183.23,183.19,2.93]
[1755547817577,135.84,183.23,183.2,2.93]
[1755547817966,135.84,183.23,183.2,6.76001937]
[1755547818476,135.84,183.23,183.2,12.21571937]
[1755547818674,135.84,183.23,183.18,0.04083007]
[1755547818878,3.12,183.2,183.18,0.04083007]
[1755547821275,3.12,183.22,183.19,2.93]
[1755547821573,135.84,183.23,183.19,2.93]
[1755547821881,3.12,183.27,183.2,6.76001937]
[1755547822584,3.12,183.27,183.22,5.4551]
[1755547822768,3.12,183.27,183.22,8.37612191]
[1755547823380,3.18,183.26,183.22,8.37612191]
[1755547825079,3.18,183.27,183.22,0.04102191]
[1755547825282,3.18,183.25,183.22,0.04102191]
[1755547825581,3.18,183.24,183.22,0.04102191]
[1755547825788,3.18,183.27,183.22,0.04102191]
[1755547826681,50.0,183.27,183.22,0.04102191]
[1755547827488,3.18,183.23,183.22,0.04102191]
[1755547827690,50.0,183.27,183.22,0.04102191]
[1755547827887,138.92,183.28,183.23,2.88]
[1755547828185,138.92,183.28,183.22,2.92102191]
[1755547828377,138.92,183.28,183.22,2.88]
[1755547828681,138.92,183.28,183.24,2.88]
[1755547830783,3.18,183.27,183.23,5.4919078]
[1755547830983,3.18,183.27,183.23,8.3719078]
[1755547831586,135.74,183.28,183.23,0.0370078]
[1755547831789,135.74,183.28,183.25,2.88]
[1755547833188,135.74,183.28,183.25,8.3344]
[1755547834691,53.18,183.34,183.27,3.83001937]
[1755547834886,135.7,183.33,183.27,3.83001937]
[1755547835379,3.18,183.32,183.27,3.83001937]
[1755547835579,3.18,183.31,183.28,0.0416057]
[1755547838676,135.7,183.33,183.29,2.88]
[1755547838882,3.18,183.32,183.29,2.88]
[1755547839182,138.88,183.33,183.29,2.88]
[1755547839483,138.88,183.33,183.28,0.0416057]
[1755547839683,3.18,183.32,183.29,2.88]
[1755547840283,135.7,183.33,183.29,8.3333]
[1755547840480,3.18,183.32,183.28,0.0416057]
[1755547840686,3.18,183.3,183.28,0.0416057]
[1755547840990,135.7,183.33,183.28,0.0416057]
[1755547841185,3.18,183.3,183.28,0.0416057]
[1755547841486,3.18,183.29,183.28,0.0416057]
[1755547843392,172.19248886,183.35,183.28,3.87162507]
[1755547843685,172.19248886,183.35,183.32,5.4523]
[1755547843892,135.64,183.36,183.33,2.88]
[1755547844286,135.64,183.36,183.32,8.3323]
[1755547844689,135.64,183.36,183.33,0.03690965]
[1755547844888,3.18,183.34,183.33,0.03690965]
[1755547848890,3.18,183.34,183.26,9.28401937]
[1755547849083,3.18,183.34,183.24,2.88]
[1755547849897,3.18,183.34,183.25,5.4545]
[1755547850494,3.21502715,183.31,183.26,8.334]
[1755547850692,135.58,183.3,183.26,8.334]
[1755547850891,138.76,183.3,183.26,8.334]
[1755547853888,138.76,183.3,183.26,2.88]
[1755547855000,138.76,183.3,183.26,8.3341]
[1755547856493,0.03502715,183.31,183.24,2.95]
[1755547856691,0.03502715,183.31,183.3,2.95]
[1755547856893,0.03502715,183.31,183.3,8.403]
[1755547857198,135.56,183.37,183.3,2.95]
[1755547857397,135.56,183.37,183.32,3.83001937]
[1755547857595,135.56,183.37,183.33,8.4021]
[1755547857801,135.56,183.37,183.34,2.95]
[1755547858001,135.56,183.37,183.32,3.83001937]
[1755547858197,135.56,183.37,183.34,5.4516]
[1755547858402,135.56,183.37,183.34,8.44008855]
[1755547858598,135.56,183.37,183.35,5.4514]
[1755547858798,135.56,183.37,183.35,8.4014]
[1755547858989,135.56,183.37,183.35,2.95]
[1755547861804,2.88,183.39,183.35,2.95]
[1755547861999,3.83541308,183.38,183.35,2.95]
[1755547862197,2.88,183.37,183.34,0.03848855]
[1755547862401,2.88,183.38,183.34,0.03848855]
[1755547862597,2.88,183.37,183.34,0.03848855]
[1755547864312,135.54,183.4,183.34,0.03848855]
[1755547864500,3.83542923,183.39,183.34,0.03848855]
[1755547864701,3.83542923,183.38,183.34,2.98848855]
[1755547864901,2.88,183.38,183.34,2.98848855]
[1755547866002,135.54,183.4,183.34,0.03848855]
[1755547866210,3.83619639,183.39,183.36,2.95]
[1755547866504,135.54,183.4,183.34,0.03848855]
[1755547866809,2.88,183.38,183.34,0.03848855]
[1755547867012,2.88,183.38,183.34,2.98848855]
[1755547870503,52.88,183.41,183.35,6.78001937]
[1755547870703,2.88,183.39,183.35,6.78001937]
[1755547870910,135.48,183.4,183.37,2.95]
[1755547873412,135.48,183.4,183.38,2.95]
[1755547874299,135.48,183.4,183.36,5.4512]
[1755547874506,135.48,183.4,183.37,2.95]
[1755547875010,138.36,183.4,183.37,2.95]
[1755547876403,135.48,183.4,183.37,2.95]
[1755547877302,50.0,183.41,183.37,2.95]
[1755547877505,185.42,183.41,183.39,2.95]
[1755547877716,135.42,183.41,183.39,2.95]
[1755547877908,2.88,183.49,183.39,2.95]
[1755547878107,143.64617215,183.48,183.41,3.83001937]
[1755547878313,6.71908841,183.47,183.41,3.83001937]
[1755547878509,2.88,183.45,183.41,9.27971937]
[1755547878712,2.88,183.44,183.41,9.27971937]
[1755547879115,2.88,183.44,183.41,12.26714993]
[1755547879614,2.88,183.44,183.41,6.81744993]
[1755547880310,2.88,183.44,183.41,0.03743056]
[1755547880816,135.42,183.45,183.41,0.03743056]
[1755547881008,2.88,183.43,183.41,0.03743056]
[1755547881512,2.88,183.5,183.41,6.81744993]
[1755547881814,3.83824012,183.49,183.41,6.81744993]
[1755547882012,3.83824012,183.48,183.44,2.95]
[1755547882215,135.4,183.49,183.44,3.83001937]
[1755547882412,135.4,183.49,183.46,3.11]
[1755547883013,138.56,183.49,183.45,0.04050041]
[1755547883213,3.16,183.49,183.45,3.15050041]
[1755547884110,3.16,183.49,183.46,3.11]
[1755547888215,3.16,183.49,183.46,8.5582]
[1755547888421,504.94,183.52,183.46,8.5582]
[1755547890244,135.38,183.52,183.47,5.4479]
[1755547890430,138.54,183.52,183.48,3.11]
[1755547890626,3.16,183.51,183.48,3.11]
[1755547891923,3.16,183.5,183.47,5.4479]
[1755547892433,3.16,183.5,183.47,8.5579]
[1755547892624,3.16,183.5,183.47,3.11]
[1755547894320,3.16,183.5,183.47,8.5579]
[1755547895633,135.38,183.52,183.48,5.4476]
[1755547895836,135.38,183.52,183.47,3.83001937]
[1755547895837,138.54,183.52,183.47,3.83001937]
[1755547896235,138.54,183.52,183.49,3.11]
[1755547896535,3.16,183.51,183.47,6.94001937]
[1755547896735,3.16,183.5,183.47,6.94001937]
[1755547897137,3.16,183.5,183.47,12.38781937]
[1755547897539,3.16,183.49,183.47,3.83001937]
[1755547897742,3.16,183.48,183.47,3.83001937]
[1755547898440,3.16,183.51,183.47,3.83001937]
[1755547898838,3.16,183.51,183.45,0.04050041]
[1755547901534,3.83393518,183.5,183.45,0.04050041]
[1755547901832,3.16,183.51,183.45,0.04050041]
[1755547902030,3.83348216,183.5,183.45,0.04050041]
[1755547902237,6.99348216,183.49,183.45,0.04050041]
[1755547902437,3.83402232,183.48,183.45,0.04050041]
[1755547902639,3.16,183.46,183.45,0.04050041]
[1755547903835,3.16,183.51,183.45,0.04050041]
[1755547904041,3.16,183.49,183.45,0.04050041]
[1755547904237,3.16,183.47,183.45,0.04050041]
[1755547904438,3.16,183.51,183.45,0.04050041]
[1755547904639,3.8359708,183.5,183.45,0.04050041]
[1755547904842,3.16,183.47,183.45,0.04050041]
[1755547905837,3.16,183.46,183.45,0.04050041]
[1755547909535,50.0,183.51,183.45,0.04050041]